[Event "Grand Prix Romania 1st Stage 2024"]
[Site "Bucuresti"]
[Date "2024.03.23"]
[Round "2.31"]
[White "Costescu, Mihnea-Constantin"]
[Black "Stoyanov, Tsvetan"]
[Result "0-1"]
[ECO "D24"]
[WhiteElo "1951"]
[BlackElo "2465"]
[Annotator "TA"]
[PlyCount "86"]
[EventDate "2024.03.20"]
[EventType "swiss"]
[EventCountry "ROU"]
[SourceTitle "playchess.com"]
[Source "ChessBase"]
[SourceQuality "1"]
[TimeControl "900+5"]

{[%evp 9,86,25,43,57,46,35,37,35,37,35,58,6,4,-4,-10,-9,-7,-17,0,-42,-48,-49,-51,-52,-47,-90,-108,-78,-32,-230,-231,-211,-220,-231,-227,-227,-221,-319,-308,-314,-291,-345,-327,-322,-326,-399,-370,-468,-464,-708,-704,-922,-681,-1702,-458,-473,-472,-490,-468,-506,-516,-525,-537,-554,-505,-593,-585,-585,-581,-675,-653,-1101,-979,-4133,-4133,-4133,-2443,-4133,-4133]} 1. d4 {[%emt 0:00:03]} Nf6 {[%emt 0:00:13]} 2. Nf3 {[%emt 0:00:01]} e6 {[%emt 0:00:06]} 3. c4 {[%emt 0:00:01]} d5 {[%emt 0:00:06]} 4. Nc3 {[%emt 0:00:02]} dxc4 {[%emt 0:00:02]} 5. e4 {[%emt 0:02:15]} b5 {[%emt 0:00:01]} 6. e5 {[%emt 0:00:20]} Nd5 {[%emt 0:00:02]} 7. Nxb5 {[%emt 0:00:17]} Nb6 {[%emt 0:00:01]} 8. Be2 {[%emt 0:00:15] White is slightly better.} Be7 {[%emt 0:00:03]} 9. O-O {[%emt 0:00:03]} Nc6 {[%emt 0:00:05][%cal Bb8c6,Bc6a5,Ba5b3,Bb3d2][%mdl 32]} 10. a4 {[%emt 0:00:35]} (10. Be3 $14) 10... Na5 $11 {[%emt 0:01:12]} 11. Be3 {[%emt 0:01:19]} Bb7 {[%emt 0:01:36]} 12. Qc2 {[%emt 0:02:27]} O-O {[%emt 0:00:25]} 13. Rad1 {[%emt 0:01:56]} Qd7 {[%emt 0:01:05]} (13... Rb8 {simplifies} 14. Qc3 Nc6 15. Bxc4 Nxa4 16. Qb3 Nb6) 14. Bd2 {[%emt 0:02:24]} Nb3 {[%emt 0:00:25]} 15. Bxc4 {[%emt 0:01:29]} Nxd2 {[%emt 0:03:57]} 16. Nxd2 {[%emt 0:01:01]} Qc6 {[%emt 0:00:17][%csl Gb7][%cal Rc6g2] [#]} 17. f3 {[%emt 0:00:12]} a6 {[%emt 0:00:07]} 18. Na3 {[%emt 0:00:41]} Nxa4 {[%emt 0:00:05]} (18... Qxa4 $17 19. Bd3 Qxd4+ 20. Kh1 Qxe5 21. Bxh7+ Kh8) 19. Qb1 $2 {[%emt 0:00:26] [#] This move loses the game for White.} ({White should try} 19. Nb3 $15 a5 20. Rc1) 19... Bxa3 $1 $19 {[%emt 0:00:25]} 20. bxa3 {[%emt 0:00:19]} Nc3 $1 {[%emt 0:00:01][%csl LRb1,LRd1]} 21. Qd3 {[%emt 0:00:03]} Nxd1 {[%emt 0:00:02]} 22. Rxd1 {[%emt 0:00:02]} Qa4 {[%emt 0:00:20]} 23. Ne4 {[%emt 0:00:09]} (23. Qb3 $142 Bc6 24. Ne4) 23... Bxe4 {[%emt 0:01:13]} 24. fxe4 {[%emt 0:00:01]} c6 {[%emt 0:00:04]} 25. d5 {[%emt 0:00:26]} cxd5 {[%emt 0:00:39]} 26. exd5 {[%emt 0:00:02]} exd5 {[%emt 0:00:01]} 27. Qxd5 {[%emt 0:00:15]} Rac8 {[%emt 0:00:27]} 28. Bb3 {[%emt 0:00:12]} Qxa3 {[%emt 0:00:14] Black is clearly winning.} 29. e6 {[%emt 0:00:01]} (29. Rd3 $142) 29... fxe6 {[%emt 0:00:12]} 30. Qxe6+ {[%emt 0:00:02]} Kh8 {[%emt 0:00:00] Strongly threatening ...Rc3.} 31. Qd5 {[%emt 0:00:11]} Qc5+ {[%emt 0:00:03]} (31... Rc3 $142 32. Kh1 Qxb3 (32... Rxb3 $2 33. Qe4 $19) 33. Qxb3 Rxb3) 32. Qxc5 {[%emt 0:00:03]} Rxc5 {[%emt 0:00:01][%mdl 4096] Endgame. KRR-KRB} 33. Ra1 {[%emt 0:00:02]} a5 {[%emt 0:00:01]} 34. Ba4 {[%emt 0:00:03]} g6 {[%emt 0:00:22]} 35. h3 {[%emt 0:00:01]} Rf4 {[%emt 0:00:05]} 36. Kh2 {[%emt 0:00:05]} Rd4 {[%emt 0:00:03]} 37. Bb3 {[%emt 0:00:05]} Rb4 {[%emt 0:00:10]} 38. Bd1 {[%emt 0:00:03]} Kg7 {[%emt 0:00:08]} 39. Bf3 {[%emt 0:00:05]} a4 {[%emt 0:00:09]} 40. Rd1 {[%emt 0:00:02]} Rc7 {[%emt 0:00:08]} 41. Rd5 {[%emt 0:00:03]} Ra7 {[%emt 0:00:02] ...a3 would now be deadly.} 42. Rd2 {[%emt 0:00:05]} a3 {[%emt 0:00:01]} 43. Bd5 {[%emt 0:00:03]} Rd7 {[%emt 0:00:04] Weighted Error Value: White=0.69/Black=0.20 (precise) .  Loses game:     	White=1     	---        Mistake:       	White=3     	Black=1      Inaccurate:     	White=4     	---        OK:         	White=5     	Black=14     Best:        	White=1     	Black=3      Strong:       	---       	Black=1} 0-1

[Event "Grand Prix Romania 1st Stage 2024"]
[Site "Bucuresti"]
[Date "2024.03.23"]
[Round "2.32"]
[White "Bulmaga, Irina"]
[Black "Sava, Robert-Gabriel"]
[Result "1/2-1/2"]
[ECO "C45"]
[WhiteElo "2429"]
[BlackElo "2049"]
[Annotator "TA"]
[PlyCount "130"]
[EventDate "2024.03.20"]
[EventType "swiss"]
[EventCountry "ROU"]
[SourceTitle "playchess.com"]
[Source "ChessBase"]
[SourceQuality "1"]
[TimeControl "900+5"]

{[%evp 54,130,121,115,128,41,51,26,40,36,74,0,0,0,79,78,78,78,77,78,77,75,76,4,6,0,0,0,0,0,0,0,0,0,0,0,0,0,0,13,12174,11807,5485,0,0,0,29961,0,0,0,0,0,0,0,0,0,0,0,0,0,0,0,0,0,0,0,0,0,0,0,0,0,0,0,0,0,0,0,0]} 1. e4 {[%emt 0:00:03]} e5 {[%emt 0:00:01]} 2. d4 {[%emt 0:00:03]} exd4 {[%emt 0:00:15]} 3. Nf3 {[%emt 0:00:02]} Nc6 {[%emt 0:01:03]} 4. Nxd4 {[%emt 0:00:03]} Bc5 {[%emt 0:00:35]} 5. Be3 {[%emt 0:00:03]} Nxd4 {[%emt 0:00:10]} 6. Bxd4 {[%emt 0:00:03]} Bxd4 {[%emt 0:00:01]} 7. Qxd4 {[%emt 0:00:03]} Qf6 {[%emt 0:00:09]} 8. Qc3 {[%emt 0:00:33] C45: Scotch Game.} Qxc3+ {[%emt 0:00:36]} 9. Nxc3 {[%emt 0:00:02]} Ne7 {[%emt 0:00:30]} 10. Nb5 {[%emt 0:00:10]} Kd8 {[%emt 0:00:04]} 11. O-O-O {[%emt 0:00:13]} a6 {[%emt 0:00:10]} 12. Nc3 {[%emt 0:00:12]} b5 $146 {[%emt 0:00:08]} ({Predecessor:} 12... d6 13. e5 d5 14. Nxd5 Nxd5 15. Rxd5+ Ke7 16. Rd1 Be6 17. a3 Rac8 18. g3 Bg4 {0-1 Bobeanu,S (1273)-Maruntis,P (1520) ROM-ch U12 Baile Felix 2017 (6)}) 13. a4 {[%emt 0:00:02]} b4 {[%emt 0:00:26]} 14. Ne2 {[%emt 0:00:08]} Bb7 {[%emt 0:00:05]} 15. f3 {[%emt 0:00:05]} Bc6 {[%emt 0:02:56]} 16. b3 {[%emt 0:00:20]} d6 {[%emt 0:00:09]} 17. Nd4 {[%emt 0:00:10]} Bd7 {[%emt 0:00:05]} 18. Bc4 {[%emt 0:00:10]} Rf8 {[%emt 0:01:16]} 19. Rhe1 {[%emt 0:00:03]} Kc8 {[%emt 0:00:33]} 20. e5 {[%emt 0:01:24]} d5 {[%emt 0:01:33]} 21. e6 {[%emt 0:00:03]} fxe6 {[%emt 0:01:49]} 22. Nxe6 {[%emt 0:00:08]} Bxe6 {[%emt 0:01:19]} 23. Rxe6 {[%emt 0:00:02]} Kd7 {[%emt 0:01:06]} 24. Rxa6 {[%emt 0:00:07]} Rxa6 {[%emt 0:00:02]} 25. Bxa6 {[%emt 0:00:01]} Kd6 {[%emt 0:00:05]} 26. Bd3 {[%emt 0:00:19]} c5 {[%emt 0:00:07]} 27. Kb2 {[%emt 0:00:14]} Nc6 {[%emt 0:00:46]} 28. Bxh7 {[%emt 0:02:18]} Rh8 {[%emt 0:00:05]} 29. Bf5 {[%emt 0:00:33]} ({Better is} 29. Be4 $16 Nd4 30. Bd3 Rxh2 31. a5) 29... Rxh2 $14 {[%emt 0:00:02]} 30. Bh3 {[%emt 0:00:01]} Nd4 {[%emt 0:00:15]} 31. a5 {[%emt 0:00:12]} Kc6 {[%emt 0:00:21]} 32. a6 {[%emt 0:00:06]} (32. Ra1 $16 {a6 is the strong threat.} Nb5 33. a6) 32... Kb6 $11 {[%emt 0:00:07]} 33. Ra1 {[%emt 0:00:35]} Ka7 {[%emt 0:00:01]} (33... Nb5 $1 $11) 34. Ra5 $16 {[%emt 0:02:18]} c4 {[%emt 0:00:24] [#]} 35. bxc4 $1 {[%emt 0:00:12]} (35. Rxd5 $2 {loses.} c3+ 36. Ka2 Nxc2 37. Rd7+ Kxa6 $19) 35... dxc4 {[%emt 0:00:01]} 36. c3 {[%emt 0:00:04]} bxc3+ {[%emt 0:00:31]} 37. Kxc3 {[%emt 0:00:02]} Nxf3 {[%emt 0:00:07]} 38. Kxc4 {[%emt 0:00:15]} (38. Rb5 $16) 38... Ng1 $1 $11 {[%emt 0:00:02]} 39. Ra3 {[%emt 0:00:31]} Nxh3 {[%emt 0:00:02]} 40. gxh3 {[%emt 0:00:02]} Rc2+ {[%emt 0:00:04]} 41. Kd5 {[%emt 0:00:04]} Re2 {[%emt 0:00:15]} 42. Rg3 {[%emt 0:00:24]} Kxa6 {[%emt 0:00:07]} 43. Rxg7 {[%emt 0:00:03]} Rh2 {[%emt 0:00:02]} 44. Rh7 {[%emt 0:00:15]} Kb6 {[%emt 0:00:01]} 45. h4 {[%emt 0:00:03]} Rd2+ $1 {[%emt 0:00:04]} 46. Ke6 {[%emt 0:00:03]} Kc6 $2 {[%emt 0:00:03][%mdl 8192] [#]} (46... Re2+ $11 47. Kf7 Rf2+ 48. Kg8 Rf5) 47. h5 $1 $18 {[%emt 0:00:04]} Re2+ {[%emt 0:00:01]} 48. Kf6 $2 {[%emt 0:00:01]} (48. Kf7 $18 {White wants to mate with Rh6+.} Rf2+ 49. Ke8) 48... Kd6 $1 $11 {[%emt 0:00:03]} 49. Rf7 {[%emt 0:00:19]} (49. h6 $5 Re6+ $8 50. Kg5 Re5+ 51. Kg4 Re4+ 52. Kf5 Re5+ 53. Kg6 Re6+ 54. Kg5 Re5+ 55. Kh4 Re4+ 56. Kh5 Re5+ 57. Kg6 Re6+ 58. Kf5 Re5+ 59. Kg4 Re4+ 60. Kf3 $11) 49... Rf2+ $2 {[%emt 0:00:07][%mdl 8192]} (49... Rh2 $11) 50. Kg6 $2 {[%emt 0:00:01]} (50. Kg7 {mates} Rg2+ 51. Kf8 Rh2 52. Rf6+ Ke5 53. Rb6 Rh1 54. h6 Rh3 55. Kg7) 50... Rg2+ $11 {[%emt 0:00:02]} 51. Kh7 {[%emt 0:00:03]} Ke6 {[%emt 0:00:04]} 52. Rf3 {[%emt 0:00:09]} Ke7 {[%emt 0:00:08]} 53. h6 {[%emt 0:00:03]} Rg1 {[%emt 0:00:01]} 54. Ra3 {[%emt 0:00:10]} Kf7 {[%emt 0:00:07]} 55. Ra7+ {[%emt 0:00:01]} Kf8 {[%emt 0:00:01]} 56. Ra5 {[%emt 0:00:07]} Kf7 {[%emt 0:00:03]} 57. Rf5+ {[%emt 0:00:03]} Ke7 {[%emt 0:00:01]} 58. Rf4 {[%emt 0:00:05]} Rg2 {[%emt 0:00:02]} 59. Ra4 {[%emt 0:00:11]} Kf7 {[%emt 0:00:01]} 60. Ra7+ {[%emt 0:00:02]} Kf8 {[%emt 0:00:01]} 61. Rg7 {[%emt 0:00:01]} Rf2 {[%emt 0:00:10]} 62. Rg5 {[%emt 0:00:10]} Rf7+ {[%emt 0:00:18]} 63. Kg6 {[%emt 0:00:05]} Kg8 {[%emt 0:00:04]} 64. Rd5 {[%emt 0:00:16]} Rf8 {[%emt 0:00:01]} 65. Rd7 {[%emt 0:00:09]} Ra8 {[%emt 0:00:01]} 1/2-1/2

[Event "Grand Prix Romania 1st Stage 2024"]
[Site "Bucuresti"]
[Date "2024.03.23"]
[Round "2.33"]
[White "Arba, Constantin-Andrei"]
[Black "Stoleriu, George"]
[Result "0-1"]
[ECO "B15"]
[WhiteElo "1924"]
[BlackElo "2391"]
[Annotator "RC"]
[PlyCount "84"]
[EventDate "2024.03.20"]
[EventType "swiss"]
[EventCountry "ROU"]
[SourceTitle "playchess.com"]
[Source "ChessBase"]
[SourceQuality "1"]
[TimeControl "900+5"]

1. e4 {[%emt 0:00:02]} c6 {[%emt 0:00:09]} 2. d4 {[%emt 0:00:01]} d5 {[%emt 0:00:00]} 3. Nc3 {[%emt 0:00:01]} dxe4 {[%emt 0:00:03]} 4. Nxe4 {[%emt 0:00:02]} Nf6 {[%emt 0:00:07]} 5. Nxf6+ {[%emt 0:00:02]} exf6 {[%emt 0:00:02]} 6. c3 {[%emt 0:00:11]} Bd6 {[%emt 0:00:03]} 7. Bd3 {[%emt 0:00:02]} O-O {[%emt 0:00:06]} 8. Ne2 {[%emt 0:00:02]} Re8 {[%emt 0:00:05]} 9. O-O {[%emt 0:00:04]} Nd7 {[%emt 0:00:01]} 10. Bf4 {[%emt 0:03:14]} Nf8 {[%emt 0:00:21]} 11. Bxd6 {[%emt 0:00:50]} Qxd6 {[%emt 0:00:02]} 12. Ng3 {[%emt 0:00:09]} Ng6 {[%emt 0:01:31]} 13. Qc2 {[%emt 0:06:19]} Be6 {[%emt 0:00:17]} 14. Ne4 {[%emt 0:00:24]} Qc7 {[%emt 0:00:24]} 15. Nc5 {[%emt 0:00:02]} Re7 {[%emt 0:00:27]} 16. Bxg6 {[%emt 0:00:20]} hxg6 {[%emt 0:00:02]} 17. Nxe6 {[%emt 0:00:03]} Rxe6 {[%emt 0:00:01]} 18. Rae1 {[%emt 0:00:12]} Rae8 {[%emt 0:00:01]} 19. Rxe6 {[%emt 0:00:04]} Rxe6 {[%emt 0:00:01]} 20. b4 {[%emt 0:01:49]} Qe7 {[%emt 0:00:05]} 21. Qd3 {[%emt 0:00:05]} Re2 {[%emt 0:00:27]} 22. a4 {[%emt 0:00:02]} Ra2 {[%emt 0:00:52]} 23. a5 {[%emt 0:00:03]} Qe6 {[%emt 0:00:05]} 24. h3 {[%emt 0:00:29]} g5 {[%emt 0:00:46]} 25. Qb1 {[%emt 0:00:33]} g6 {[%emt 0:00:21]} 26. Re1 {[%emt 0:00:07]} Qc4 {[%emt 0:00:42]} 27. Re8+ {[%emt 0:00:07]} Kg7 {[%emt 0:00:01]} 28. Re3 {[%emt 0:00:18]} Ra3 {[%emt 0:00:17]} 29. Qb2 {[%emt 0:00:30]} Rb3 {[%emt 0:00:04]} 30. Qc2 {[%emt 0:00:08]} Rxb4 {[%emt 0:00:10]} 31. Qe2 {[%emt 0:00:16]} Rb1+ {[%emt 0:00:35]} 32. Kh2 {[%emt 0:00:01]} Qd5 {[%emt 0:00:09]} 33. Qf3 {[%emt 0:00:09]} Qxa5 {[%emt 0:00:12]} 34. Re7 {[%emt 0:00:05]} Qd8 {[%emt 0:00:47]} 35. Qe4 {[%emt 0:00:08]} Qd6+ {[%emt 0:00:07]} 36. g3 {[%emt 0:00:00]} Rb2 {[%emt 0:00:17]} 37. Kg2 {[%emt 0:00:00]} Qd5 {[%emt 0:00:07]} 38. Qxd5 {[%emt 0:00:04]} cxd5 {[%emt 0:00:01]} 39. Rd7 {[%emt 0:00:03]} Rb5 {[%emt 0:00:01]} 40. Kf3 {[%emt 0:00:12]} a5 {[%emt 0:00:03]} 41. Ke3 {[%emt 0:00:04]} a4 {[%emt 0:00:01]} 42. Rd8 {[%emt 0:00:03]} Ra5 {[%emt 0:00:01]} 0-1

[Event "Grand Prix Romania 1st Stage 2024"]
[Site "Bucuresti"]
[Date "2024.03.23"]
[Round "2.34"]
[White "Vedmediuc, Serghei"]
[Black "Arion, Ilie"]
[Result "1-0"]
[ECO "B07"]
[WhiteElo "2452"]
[BlackElo "1919"]
[Annotator "TA"]
[PlyCount "125"]
[EventDate "2024.03.20"]
[EventType "swiss"]
[EventCountry "ROU"]
[SourceTitle "playchess.com"]
[Source "ChessBase"]
[SourceQuality "1"]
[TimeControl "900+5"]

{[%evp 12,125,18,0,-10,-6,-18,-8,-10,0,12,-8,0,0,8,-13,31,23,27,22,60,60,84,83,88,86,170,97,94,95,85,79,88,-29,0,-61,31,0,-7,-25,602,552,654,0,0,0,189,0,0,0,0,0,0,0,0,0,0,0,0,0,0,0,0,0,0,0,0,0,0,-8,0,0,0,0,0,0,0,0,0,0,0,0,0,0,0,0,18,18,18,18,18,18,18,18,18,18,38,38,38,38,46,46,46,46,46,46,46,46,46,0,46,0,46,46,29985,29986]} 1. e4 {[%emt 0:00:03]} d6 {[%emt 0:00:02]} 2. f4 {[%emt 0:00:08]} g6 {[%emt 0:00:02]} 3. d4 {[%emt 0:00:08]} Nf6 {[%emt 0:00:05]} 4. Nd2 {[%emt 0:00:17]} Bg7 {[%emt 0:00:46]} 5. Ngf3 {[%emt 0:00:05]} O-O {[%emt 0:00:16]} 6. c3 {[%emt 0:00:25]} Nc6 {[%emt 0:00:14]} 7. Bd3 {[%emt 0:00:42]} e5 {[%emt 0:00:44]} 8. d5 {[%emt 0:00:32]} Nb8 {[%emt 0:00:18]} 9. fxe5 {[%emt 0:00:15]} dxe5 {[%emt 0:00:02]} 10. O-O {[%emt 0:00:10]} Nbd7 {[%emt 0:00:08]} 11. c4 {[%emt 0:01:27]} Nc5 {[%emt 0:00:24]} 12. Bc2 {[%emt 0:00:02]} a5 {[%emt 0:00:13]} 13. Qe2 {[%emt 0:00:14]} Nh5 {[%emt 0:00:23]} (13... c6 $5) 14. Nb3 {[%emt 0:00:25]} Nxb3 {[%emt 0:03:38]} 15. axb3 {[%emt 0:00:03]} Qe7 {[%emt 0:00:13]} 16. Bg5 {[%emt 0:00:16]} Qc5+ {[%emt 0:00:23]} 17. Be3 {[%emt 0:00:03]} Qe7 {[%emt 0:00:05]} 18. Qd2 {[%emt 0:00:20]} f5 {[%emt 0:00:46] [#]} (18... b6 $16) 19. Rxa5 {[%emt 0:00:29]} (19. b4 $1 $18) 19... Rxa5 $16 {[%emt 0:00:03]} 20. Qxa5 {[%emt 0:00:02]} b6 {[%emt 0:00:01]} 21. Qa3 {[%emt 0:00:11]} Qe8 {[%emt 0:00:32]} 22. exf5 {[%emt 0:01:41]} (22. b4 $16) 22... gxf5 {[%emt 0:00:02]} (22... e4 {looks sharper.} 23. Ng5 gxf5 24. d6 f4) 23. b4 {[%emt 0:04:34]} ({White should play} 23. Ng5 $11) 23... f4 {[%emt 0:00:05]} (23... e4 $1 $15 24. Ng5 f4 25. Bxe4 fxe3 26. Rxf8+ Kxf8 27. b5+ (27. Nxh7+ $2 Kg8 $19) 27... Kg8 28. Qxe3 h6 (28... Bxb2 $2 29. Bxh7+ Kf8 30. Qxe8+ Kxe8 31. Bg6+ Ke7 32. Bxh5 $18) (28... Bf5 29. d6 $17)) 24. Bc1 {[%emt 0:00:31]} e4 {[%emt 0:00:03]} 25. Re1 $1 {[%emt 0:00:05]} exf3 $2 {[%emt 0:01:31][%mdl 8192]} (25... Bf5 $11 26. Nh4 Bd4+ 27. Kf1 Bf2) 26. Rxe8 $18 {[%emt 0:00:18]} Rxe8 {[%emt 0:00:22]} 27. Qd3 $2 {[%emt 0:00:56]} (27. gxf3 $2 Bd4+ $19) (27. Qxf3 $18 Re1+ 28. Kf2 Rxc1 29. Bxh7+ Kxh7 30. Qxh5+ Bh6 31. Qf7+ Bg7 32. Qxc7 (32. Qxf4 Ra1 $18)) 27... Re1+ $11 {[%emt 0:00:10]} 28. Kf2 {[%emt 0:00:02]} Rxc1 $2 {[%emt 0:00:25]} (28... fxg2 $1 $11 {and Black stays safe.} 29. Kxg2 Bg4 (29... Rxc1 30. d6 $16)) 29. Qxh7+ $2 {[%emt 0:00:51]} (29. gxf3 $18 {Threatens to win with d6.} Nf6 30. Qd2) 29... Kf8 $11 {[%emt 0:00:01]} 30. gxf3 {[%emt 0:00:09]} (30. Kxf3 $2 Bg4+ (30... Bxb2 $2 31. Qxc7 Rxc2 32. Qxc8+ Kg7 33. d6 $18) 31. Kxg4 Nf6+ 32. Kxf4 Nxh7 33. Bxh7 Rxc4+ (33... Bxb2 $2 34. Bd3 $19) 34. Kf5 Rh4 $19 (34... Rxb4 $2 35. Ke6 $19) (34... Bxb2 $2 35. Ke6 $19)) 30... Nf6 $1 {[%emt 0:01:24]} 31. Qg6 {[%emt 0:00:02]} Bh3 {[%emt 0:00:24]} 32. Bf5 {[%emt 0:00:11]} Bxf5 {[%emt 0:00:07]} 33. Qxf5 {[%emt 0:00:01]} Rxc4 {[%emt 0:00:02]} 34. b3 {[%emt 0:00:21]} Rxb4 {[%emt 0:01:00]} 35. h4 {[%emt 0:00:18]} Rb5 {[%emt 0:00:18]} 36. Qxf4 {[%emt 0:00:06]} Rxd5 {[%emt 0:00:14]} 37. Qxc7 {[%emt 0:00:04]} Rb5 {[%emt 0:00:08]} 38. b4 {[%emt 0:00:08]} Ne8 {[%emt 0:00:20]} 39. Qf4+ {[%emt 0:00:08]} Bf6 {[%emt 0:00:05]} 40. Qh6+ {[%emt 0:00:22]} Bg7 {[%emt 0:00:11]} 41. Qg6 {[%emt 0:00:13]} Rxb4 {[%emt 0:00:13]} 42. h5 {[%emt 0:00:05]} Rh4 {[%emt 0:00:15]} 43. Kg3 {[%emt 0:00:05]} Rh1 {[%emt 0:00:03]} 44. Kg2 {[%emt 0:00:06]} (44. Qxb6 Rxh5 45. Kf2 Nf6) 44... Rh4 {[%emt 0:00:11]} 45. Qg5 {[%emt 0:00:29]} Bf6 {[%emt 0:00:01]} 46. Qf5 {[%emt 0:00:05]} Ke7 {[%emt 0:00:25]} 47. Qh7+ {[%emt 0:00:06]} Ng7 {[%emt 0:00:20]} 48. h6 {[%emt 0:00:08]} Kf7 {[%emt 0:00:01]} 49. f4 {[%emt 0:00:17]} Rxf4 {[%emt 0:00:23]} 50. hxg7 {[%emt 0:00:04]} Bxg7 {[%emt 0:00:02]} (50... Rg4+ 51. Kf1 Rf4+ 52. Ke1 Bxg7 (52... Bc3+ 53. Ke2 $14) 53. Qh2 (53. Qh5+ Kf6 $14)) 51. Qh5+ {[%emt 0:00:06]} Kf8 {[%emt 0:00:10]} 52. Qd5 {[%emt 0:00:03]} Rf6 {[%emt 0:00:04]} 53. Kg3 {[%emt 0:00:04]} Rg6+ {[%emt 0:00:07]} 54. Kf4 {[%emt 0:00:03]} Rf6+ {[%emt 0:00:03]} 55. Kg5 {[%emt 0:00:02]} Rf1 {[%emt 0:00:33]} 56. Qd8+ {[%emt 0:00:08]} Kf7 {[%emt 0:00:02]} 57. Qc7+ {[%emt 0:00:04]} Kf8 {[%emt 0:00:04]} 58. Qb8+ {[%emt 0:00:04]} Kf7 {[%emt 0:00:03]} 59. Qa7+ {[%emt 0:00:07]} Kf8 {[%emt 0:00:06]} 60. Qb8+ {[%emt 0:00:04]} Kf7 {[%emt 0:00:01]} 61. Qc7+ {[%emt 0:00:00]} Kf8 $1 {[%emt 0:00:03]} 62. Qc8+ {[%emt 0:00:01]} Kf7 $2 {[%emt 0:00:02][%mdl 8192]} (62... Ke7 $14) 63. Qc4+ {[%emt 0:00:51]} 1-0

[Event "Grand Prix Romania 1st Stage 2024"]
[Site "Bucuresti"]
[Date "2024.03.23"]
[Round "2.35"]
[White "Zaim, Marian"]
[Black "Nevednichy, Vladislav"]
[Result "0-1"]
[ECO "A37"]
[WhiteElo "1963"]
[BlackElo "2445"]
[Annotator "TA"]
[PlyCount "104"]
[EventDate "2024.03.20"]
[EventType "swiss"]
[EventCountry "ROU"]
[SourceTitle "playchess.com"]
[Source "ChessBase"]
[SourceQuality "1"]
[TimeControl "900+5"]

{[%evp 24,104,-24,-11,-22,-23,-14,-19,-1,-55,-60,-59,-70,-89,-80,-139,-135,-159,-133,-151,-143,-162,-120,-109,-106,-133,-128,-143,-64,-87,-86,-77,-83,-93,-82,-91,-90,-281,-282,-287,-279,-418,-239,-243,-256,-272,-276,-292,-216,-319,-87,-308,-327,-426,-392,-618,-400,-454,-430,-438,-452,-462,-423,-529,-530,-527,-541,-738,-762,-762,-748,-762,-762,-734,-598,-29983,-29984,-29984,-29969,-29969,-29969,-29966,-29969]} 1. Nf3 {[%emt 0:00:02]} c5 {[%emt 0:00:09]} 2. c4 {[%emt 0:00:03]} g6 {[%emt 0:00:04]} 3. g3 {[%emt 0:00:13]} Bg7 {[%emt 0:00:03]} 4. Bg2 {[%emt 0:00:19]} Nc6 {[%emt 0:00:02]} 5. O-O {[%emt 0:00:10]} e5 {[%emt 0:00:06]} 6. Nc3 {[%emt 0:00:05]} Nge7 {[%emt 0:00:05]} 7. a3 {[%emt 0:00:30]} d6 {[%emt 0:00:07]} 8. Rb1 {[%emt 0:00:09]} Be6 {[%emt 0:00:10]} 9. d3 {[%emt 0:00:09]} a5 {[%emt 0:00:13]} 10. Ne1 {[%emt 0:01:05]} O-O {[%emt 0:00:34]} 11. Nc2 {[%emt 0:00:45]} d5 {[%emt 0:00:03]} 12. cxd5 {[%emt 0:00:18]} Nxd5 {[%emt 0:00:02]} 13. Ne4 {[%emt 0:01:24]} b6 {[%emt 0:00:14]} 14. Ng5 {[%emt 0:00:12]} Bc8 {[%emt 0:00:27]} 15. Ne3 {[%emt 0:00:28]} Nde7 {[%emt 0:00:27] The position is equal.} 16. Bd2 {[%emt 0:01:19]} ({White should play} 16. b4 $11 cxb4 (16... axb4 17. axb4 cxb4 18. Bd2 $11) 17. axb4 axb4 18. Bd2) 16... h6 $15 {[%emt 0:00:09]} 17. Nf3 {[%emt 0:00:30]} Be6 {[%emt 0:01:33]} 18. Bc3 {[%emt 0:00:25]} a4 {[%emt 0:02:57]} 19. Nc4 {[%emt 0:00:30]} (19. Nh4 $142) 19... Qc7 $1 $17 {[%emt 0:00:26]} 20. Rc1 {[%emt 0:00:41]} Rfd8 {[%emt 0:00:11] ...Bxc4 would now be deadly.} 21. Qc2 {[%emt 0:00:54]} Rab8 {[%emt 0:00:02]} 22. Ne3 {[%emt 0:00:51]} (22. Qxa4 $2 {loses.} b5 23. Ba5 Qa7 $19) 22... Bb3 {[%emt 0:00:36]} 23. Qb1 {[%emt 0:00:03]} f5 {[%emt 0:00:30] Black is more active.} 24. Nd2 {[%emt 0:00:38]} Bf7 {[%emt 0:00:02]} 25. Rfe1 {[%emt 0:01:05]} Qd7 {[%emt 0:00:17]} (25... Qa7 $17 26. Nc2 b5) 26. b4 $15 {[%emt 0:00:12]} cxb4 {[%emt 0:00:50]} 27. Bxb4 {[%emt 0:00:22]} Nxb4 28. Qxb4 {[%emt 0:00:02]} b5 {[%emt 0:00:27]} 29. Red1 {[%emt 0:00:30]} Qd6 {[%emt 0:00:24]} 30. Rb1 {[%emt 0:00:44] [#]} (30. Qxd6 $17 Rxd6 31. Rc7) 30... Qxb4 $1 $19 {[%emt 0:00:28]} 31. Rxb4 {[%emt 0:00:02] [#]} e4 $1 {[%emt 0:00:02]} 32. Ndf1 {[%emt 0:00:54]} (32. Rc1 $142) 32... Bb3 {[%emt 0:00:15] A strong pair of Bishops.} (32... Nc6 $142 33. Rbb1 b4 34. axb4 a3 (34... Rxb4 $2 35. dxe4 Rxb1 36. Rxb1 $19) (34... Nxb4 $2 35. dxe4 Rxd1 36. Rxd1 $19) 35. dxe4 a2 (35... Rxb4 $2 {is the wrong capture.} 36. Rxd8+ Kh7 37. Rxb4 $18) 36. exf5 axb1=R (36... axb1=Q $2 37. Rxb1 Nd4 38. Kh1 $19) (36... axb1=N $2 37. fxg6 Bxg6 38. Bxc6 $19) (36... axb1=B $2 37. Rxb1 Nd4 38. Bf3 $19) 37. Rxb1 Nd4 (37... Rxb4 $2 38. Rxb4 Nxb4 39. h4 $19) (37... Nxb4 $2 38. Rc1 $19)) 33. Rb1 {[%emt 0:00:23]} Nc6 {[%emt 0:00:22][%cal Be7c6,Bc6d4,Bd4e2][%mdl 32]} 34. R4xb3 {[%emt 0:00:02]} axb3 {[%emt 0:00:01]} 35. dxe4 {[%emt 0:00:37]} Nd4 {[%emt 0:00:02]} 36. exf5 {[%emt 0:00:09]} (36. Kh1 $142) 36... Nxe2+ {[%emt 0:00:03]} 37. Kh1 {[%emt 0:00:01]} b2 {[%emt 0:00:07]} 38. fxg6 {[%emt 0:00:44]} Rbc8 {[%emt 0:00:06] Threatens to win with ...Rc1.} 39. Be4 {[%emt 0:00:21]} (39. Bf3 $142 Nc1 (39... Rc1 $2 40. Rxb2 Nxg3+ 41. hxg3 $19) 40. Bg4) 39... Nc3 {[%emt 0:00:16]} 40. Rxb2 {[%emt 0:00:26]} Nxe4 {[%emt 0:00:02]} 41. Rxb5 {[%emt 0:00:01]} Nxf2+ {[%emt 0:00:02]} 42. Kg2 {[%emt 0:00:02]} Nd3 {[%emt 0:00:03]} 43. Nf5 {[%emt 0:00:03]} Rc2+ {[%emt 0:00:04]} 44. Kh3 {[%emt 0:00:05]} Nf2+ {[%emt 0:00:03]} 45. Kh4 {[%emt 0:00:01]} Rc4+ {[%emt 0:00:06]} 46. Kh5 {[%emt 0:00:02]} Ng4 {[%emt 0:00:37][%cal Rg4f6]} 47. Nxg7 {[%emt 0:00:18]} Kxg7 {[%emt 0:00:09][%cal Rg4f6]} 48. Rb7+ {[%emt 0:00:01]} Kf6 {[%emt 0:00:04] ( -> ...Rd5+)} 49. h3 {[%emt 0:00:02]} Rd5+ {[%emt 0:00:12] Black mates.} 50. Kh4 {[%emt 0:00:10]} Ne3+ {[%emt 0:00:03]} 51. g4 {[%emt 0:00:05]} Nf5+ {[%emt 0:00:05]} 52. Kh5 {[%emt 0:00:02]} Nd6+ {[%emt 0:00:13] Weighted Error Value: White=0.60/Black=0.27 (precise) .  Loses game:     	White=2     	---        Mistake:       	White=5     	Black=2      Inaccurate:     	White=2     	Black=1      OK:         	White=12    	Black=12     Best:        	White=1     	Black=3      Strong:       	---       	Black=3} 0-1